Cogmind - Beta 15 @@@ ROGUE MODE // 2025.06.01 @ 13:23:42 Player: Elias Result: Destroyed by Piercing Trap Performance ------------- Evolutions (0) 0 Regions Visited (2) 400 Robots Destroyed (6) 30 Value Destroyed (174) 174 Prototype IDs (0) 0 Alien Tech Used (0) 0 Bonus (0) 0 TOTAL SCORE: 604 Bonus ------- None Cogmind --------- Core Integrity 0/250 Matter 300/300 Energy 248/250 System Corruption 1% Temperature Cool (1) Movement Core (200) Ox3 Location -10/Subcaves Parts ------- > --- POWER (1) -------- Ion Engine > --- PROPULSION (2) --- (None) > --- UTILITY (2) ------ Small Storage Unit Seismic Detector > --- WEAPON (2) ------- (None) > --- INVENTORY (8) ---- Light Treads Aluminum Leg Medium Storage Unit Dirty Datajack (20) Peak State ------------ > --- POWER ------------ Ion Engine > --- PROPULSION ------- Aluminum Leg Makeshift Leg > --- UTILITY ---------- Small Storage Unit Seismic Detector > --- WEAPON ----------- Riot Gun Assault Rifle > --- INVENTORY -------- Ion Engine Light Treads Light Treads Aluminum Leg Medium Storage Unit Medium Laser Mining Laser [Rating: 12] Favorites ----------- Power Ion Engine Engine Ion Engine Propulsion Aluminum Leg Treads Light Treads Leg Aluminum Leg Utility Small Storage Unit Device Seismic Detector Storage Small Storage Unit Weapon Assault Rifle Energy Gun Medium Laser Ballistic Gun Assault Rifle Special Weapon Mining Laser Build | -11 -10 -10 ------- Run | Yrd Mat Sub Slots Evolved . | . . . Power . | . . . Propulsion . | . . . Utility . | . . . Weapon . | . . . Parts Attached 13 | 7 . 6 Power 2 | 1 . 1 Engine 2 | 1 . 1 Core . | . . . Reactor . | . . . Propulsion 4 | 2 . 2 Treads 1 | . . 1 Leg 3 | 2 . 1 Wheel . | . . . Hover . | . . . Flight . | . . . Utility 2 | 2 . . Device 1 | 1 . . Storage 1 | 1 . . Processor . | . . . Hackware . | . . . Protection . | . . . Artifact . | . . . Weapon 5 | 2 . 3 Energy Gun 2 | . . 2 Energy Cannon . | . . . Ballistic Gun 2 | 2 . . Ballistic Cannon . | . . . Launcher . | . . . Special Weapon 1 | . . 1 Impact Weapon . | . . . Slashing Weapon . | . . . Piercing Weapon . | . . . Special Melee Weapon . | . . . Unidentified Prototypes . | . . . Parts Lost 9 | . . 9 Power 1 | . . 1 Propulsion 3 | . . 3 Utility . | . . . Weapon 5 | . . 5 Highest Loss Streak 7 | . . 7 To Critical Strikes . | . . . Average Backups 5 | 4 5 5 Power . | . 1 . Propulsion 2 | 1 2 2 Utility . | . . 1 Weapon 1 | 1 2 1 Tool/Special . | . . . Unused Backups 5 | 2 . 3 Power . | . . . Propulsion 3 | 2 . 1 Utility 1 | . . 1 Weapon . | . . . Tool/Special 1 | . . 1 Average Slot Usage (%) 90 | . 100 86 Engine 13 | . 14 13 Treads 2 | . . 3 Leg 20 | . 28 17 Device 14 | . 14 14 Storage 14 | . 14 14 Energy Gun 3 | . . 5 Ballistic Gun 19 | . 28 15 Peak Build Rating 12 | 7 7 12 Average Rating 6 | 5 7 6 On Entrance 4 | . 7 7 Naked Turns . | . . . Heaviest Build 15 | 15 15 15 Greatest Support 30 | 20 20 30 Greatest Overweight (x) 4 | 4 . 4 Average Overweight (x) . | . . . Largest Inventory Capacity 8 | 8 8 8 Average Capacity 7 | 7 8 8 Most Carried 8 | 7 6 8 Average Carried 5 | 4 5 5 Final Capacity 8 | 8 8 8 Final Carried 6 | 5 6 4 Class Distribution -------------------- 100% | Mutant Dominant Class ---------------- Mutant | -10/Materials Mutant | -10/Subcaves Resources | -11 -10 -10 ----------- Run | Yrd Mat Sub Matter Collected 436 | 281 . 155 Remotely . | . . . Salvage Created 237 | 46 . 191 Parts 16 | 6 . 10 Haulers Intercepted . | . . . Recyclers Shooed 1 | 1 . . Parts Field Recycled . | . . . Retrieved Matter . | . . . Parts Self-Destructed 6 | . . 6 Prevented . | . . . Kills | -11 -10 -10 ------- Run | Yrd Mat Sub Combat Hostiles Destroyed 4 | . . 4 Guns 4 | . . 4 Classes Destroyed 2 | 1 . 1 Tunneler 2 | 2 . . Subdweller 4 | . . 4 Best Kill Streak 3 | 1 . 3 Combat Bots Only 3 | . . 3 Max Kills in Single Turn 1 | 1 . 1 Gunslinging . | . . . Exploded . | . . . Melee . | . . . Uniques/NPCs Destroyed . | . . . Combat | -11 -10 -10 -------- Run | Yrd Mat Sub Hostile Shots Fired 60 | . . 60 Missed 14 | . . 14 Hits 46 | . . 46 Projectile 46 | . . 46 Critical Strikes 1 | . . 1 Damage Taken 1199 | . . 1199 Core 267 | . . 267 Absorbed by Shields . | . . . Core Remaining (%) 100 | 100 . . Volleys Fired 45 | 6 3 36 Largest 2 | 2 2 2 Hottest 100 | 40 40 100 Shots Fired 65 | 12 6 47 Gun 58 | 12 6 40 Cannon . | . . . Launcher . | . . . Special 7 | . . 7 Kinetic 37 | 12 6 19 Thermal 25 | . . 25 Explosive . | . . . Electromagnetic 3 | . . 3 Robot Hit Streak 15 | 6 1 15 Robot Miss Streak 5 | 1 4 5 Penetration Max . | . . . Secondary Targets . | . . . Shots Hit Robots 43 | 10 1 32 Core Hits 14 | 3 . 11 Critical Kills . | . . . Critical Parts Destroyed . | . . . Critical Strikes 1 | . . 1 Burn 1 | . . 1 Melee Attacks . | . . . Impact . | . . . Slashing . | . . . Piercing . | . . . Sneak Attacks . | . . . Combat Hostiles . | . . . Follow-up Attacks . | . . . Damage Inflicted 526 | 128 13 385 Guns 526 | 128 13 385 Cannons . | . . . Explosions . | . . . Melee . | . . . Ramming . | . . . Kinetic 291 | 128 13 150 Thermal 185 | . . 185 Explosive . | . . . Electromagnetic 50 | . . 50 Impact . | . . . Slashing . | . . . Piercing . | . . . Highest Corruption 1 | . 1 1 Average Corruption 1 | . 1 1 Corruption Purged . | . . . Corruption Blocked . | . . . Effects 4 | . . 4 Message Errors 1 | . . 1 Heat Flow Errors 1 | . . 1 Data Loss (minor) 2 | . . 2 Overload Shots . | . . . Overflow Damage . | . . . Projectiles . | . . . Explosions . | . . . Melee . | . . . Knockbacks . | . . . Impact . | . . . Kinetic . | . . . Secondary . | . . . Self-Inflicted Damage . | . . . Shots . | . . . Rammed . | . . . Targets Rammed . | . . . Kicked . | . . . Crushed . | . . . Highest Temperature 71 | . . 71 Average Temperature 51 | . . 51 Received Heat Transfer 114 | . . 114 Siege Activations . | . . . Martial Activations . | . . . Shielding Activations . | . . . Robots Disrupted . | . . . Combat Hostiles . | . . . Robots Corrupted . | . . . Combat Hostiles . | . . . Parts Fried . | . . . Impact Corruptions . | . . . Robots Melted . | . . . Combat Hostiles . | . . . Parts Melted 2 | . . 2 Heat Transferred 629 | . . 629 Parts Sabotaged . | . . . Parts Stolen . | . . . Parts Stripped . | . . . Power Chain Reactions . | . . . Alert | -11 -10 -10 ------- Run | Yrd Mat Sub Maximum Alert Level . | . . . Low Security (%) 100 | 100 100 . Level 1 . | . . . Level 2 . | . . . Level 3 . | . . . Level 4 . | . . . Level 5 . | . . . High Security . | . . . Max Security . | . . . Peak Influence 7 | 5 7 . Initial . | . . . Average . | . . . Influence Increases 22 | 10 12 . Destroy 0b10 Robot/NC 10 | 10 . . Successful Hack 12 | . 12 . Influence Decreases 22 | 10 12 . Time Decay 22 | 10 12 . Squads Dispatched . | . . . Investigation . | . . . Extermination . | . . . Reinforcement . | . . . Assault . | . . . Garrison . | . . . Intercept . | . . . Searches Triggered . | . . . Construction Impeded . | . . . Haulers Reinforced . | . . . Active Scanning Responses . | . . . Cargo Convoy Interrupts . | . . . Stealth | -11 -10 -10 --------- Run | Yrd Mat Sub Distress Signals . | . . . Communications Jammed . | . . . Distress Signals . | . . . Times Spotted 7 | . 2 5 Peak Tracking Total 4 | . 1 4 Tactical Retreats . | . . . Traps | -11 -10 -10 ------- Run | Yrd Mat Sub Traps Triggered 5 | . 1 4 Indirectly . | . . . Trap Hack Attempts . | . . . Triggered . | . . . Disarmed . | . . . Reprogrammed . | . . . Reused . | . . . Traps Extracted . | . . . Installed . | . . . Triggered . | . . . Machines | -11 -10 -10 ---------- Run | Yrd Mat Sub Machines Disabled . | . . . Max in Single Turn . | . . . Machines Repaired . | . . . Machines Dismantled . | . . . Machines Sabotaged . | . . . Overloaded Fab Kills . | . . . Hacking | -11 -10 -10 --------- Run | Yrd Mat Sub Machines Accessed 2 | . 2 . Terminals 2 | . 2 . Fabricators . | . . . Repair Stations . | . . . Recycling Units . | . . . Scanalyzers . | . . . Garrison Access . | . . . Total Hacks 7 | . 7 . Successful 5 | . 5 . Failed 2 | . 2 . Catastrophic . | . . . Database Lockouts . | . . . Manual . | . . . Terminals 7 | . 7 . Fabricators . | . . . Repair Stations . | . . . Recycling Units . | . . . Scanalyzers . | . . . Garrison Access . | . . . Terminal Hacks 5 | . 5 . Record 3 | . 3 . Robot Analysis 1 | . 1 . Branch Access Points 1 | . 1 . Fabricator Hacks . | . . . Repair Station Hacks . | . . . Recycling Unit Hacks . | . . . Scanalyzer . | . . . Garrison Access Hacks . | . . . Unauthorized Hacks . | . . . Terminals . | . . . Fabricators . | . . . Repair Stations . | . . . Recycling Units . | . . . Scanalyzers . | . . . Garrison Access . | . . . Data Cores Recovered . | . . . Used . | . . . Hacking Detections 2 | . 2 . Full Trace Events . | . . . Feedback Events . | . . . Feedback Blocked . | . . . Robot Schematics Acquired . | . . . Robots Built . | . . . Authchips . | . . . Time . | . . . Total Robot Build Rating . | . . . Part Schematics Acquired . | . . . Parts Built . | . . . Authchips . | . . . Time . | . . . Total Part Build Rating . | . . . Parts Repaired . | . . . Time . | . . . Parts Recycled . | . . . Recycled Matter . | . . . Retrieved Matter . | . . . Retrieved Components . | . . . Parts Scanalyzed . | . . . Part Schematics Acquired . | . . . Parts Damaged . | . . . Bothacking | -11 -10 -10 ------------ Run | Yrd Mat Sub Used RIF Installer . | . . . Robots Hacked . | . . . Non-combat . | . . . Combat . | . . . Robot Hacks Applied . | . . . Relay Couplers Released . | . . . Fabnet Peak Effective % . | . . . Robots Rewired . | . . . Allies Hacked . | . . . Hacks Repelled . | . . . Allies | -11 -10 -10 -------- Run | Yrd Mat Sub Total Allies . | . . . Largest Group . | . . . Highest-Rated Group . | . . . Highest-Rated Ally . | . . . Total Orders . | . . . Ally Attacks . | . . . Total Damage . | . . . Kills . | . . . Allies Corrupted . | . . . Allies Melted . | . . . Intel | -11 -10 -10 ------- Run | Yrd Mat Sub Active Infowar (turns) 888 | 13 241 634 Seismic 888 | 13 241 634 Robot Analysis Total 1 | . 1 . Derelict Logs Recovered . | . . . Drone Launches . | . . . Drone Recoveries . | . . . Exploration | -11 -10 -10 ------------- Run | Yrd Mat Sub Turns Passed 1055 | 180 241 634 Spaces Moved 571 | 104 96 371 Core 54 | 29 . 25 Treads 84 | . . 84 Legs 433 | 75 96 262 Wheels . | . . . Hover . | . . . Flight . | . . . Fastest Speed 50 | 50 120 120 Average Speed 135 | 135 120 138 Slowest Speed 250 | 250 120 250 Overloaded Moves . | . . . Propulsion Burnouts . | . . . Robots Hopped . | . . . Potential Cave-ins . | . . . Cave-ins Triggered . | . . . Exploration Rate (%) 19 | 5 22 32 Regions Visited 2 Branch Regions 1 Pre-discovered Areas . | . . . Known Exits Taken . | . . . Unknown Exits Taken 2 | 1 1 . Scrap Searched . | . . . Spaces Dug . | . . . Terrain Destroyed . | . . . Melee . | . . . Projectile . | . . . AOE . | . . . Terrain Rammed . | . . . Walls Destroyed . | . . . Machines Disabled . | . . . Actions | -11 -10 -10 --------- Run | Yrd Mat Sub Total 771 | 132 216 423 Wait 120 | . 117 3 Move 569 | 103 95 371 Hop . | . . . Pick Up 18 | 14 1 3 Fast Attach . | . . . Attach 12 | 7 . 5 Detach . | . . . Swap 5 | . . 5 Drop 2 | 2 . . Fire 45 | 6 3 36 Melee . | . . . Ram . | . . . Kick . | . . . Crush . | . . . Escape Stasis . | . . . Rewire . | . . . Trap . | . . . Miscellaneous . | . . . Route ------- -11/Scrapyard -10/Materials (discovered 2 exits: Min / [*Sub]) -10/Subcaves History --------- Turn | Location | Event 31 | -11/Scrapyard | Discovered new exit (range 14) 181 | -11/Scrapyard | Entered Materials 228 | -10/Materials | Identified exit to Mines 303 | -10/Materials | Build established: Mutant 390 | -10/Materials | Discovered new exit (range 11) 422 | -10/Materials | Entered Subcaves 595 | -10/Subcaves | Shifting Twisted Machinery released Riot Gun 610 | -10/Subcaves | Shifting Twisted Machinery released Sub. Laser 830 | -10/Subcaves | Core integrity fell below 50% 844 | -10/Subcaves | Core integrity fell below 20% 857 | -10/Subcaves | Lost 7 parts (1p2n4w) 1056 | -10/Subcaves | Destroyed by Piercing Trap Last Messages --------------- 00861_ Acquired Dirty Datajack. 00866_ Subatomizers dissect the Sub. Beam Cannon. 00918_ System corrupted: Component data lost. 00993_ System corrupted: Heat flow error (+110). 01009_ 1P-ELR(u) tweaks Twisted Machinery. 01039_ Triggered Shrapnel Trap. 01039_ An expanding cloud of shrapnel blasts out in all directions. 01046_ Triggered Piercing Trap. 01046_ Spikes shoot up from the floor. 01046_ Critical hit (Impale). 01050_ Triggered Piercing Trap. 01050_ Spikes shoot up from the floor. 01050_ Critical hit (Impale). 01050_ Med. Laser destroyed. 01050_ Critical hit (Impale). 01056_ Triggered Piercing Trap. 01056_ Spikes shoot up from the floor. 01056_ Critical hit (Impale). 01056_ Lgt. Treads destroyed. 01056_ Critical hit (Impale). Map ----- +----------------------------------------------------+ | ?#### #??????????????????????# #????????? | | ???## #??????????????????????# ????????? | | ???# ##?????????????????????# ????????? | | "??# ####??????????????????# ???????? | | ""## ## ##?????????????????## # ???????? | | "" ###### #??????????????????#### ??????? | | " ### #??????????????????????" ??????? | | "# #???????????????????????##?????? | | # ##??????????????????????????????? | | # # #???????????????????????????????? | | # #???????????????????????????????? | | " ## #???????????????????????????????? | | " ### ##???????????????????????????????? | | ## #????????????????????????????????? | | ## #####????????????????????????????? | | ## ;;###??????????????????????????? | | ;"#??????????????????????????? | | ;#??????????????????????????? | | ## # ; ;##?????????????????????????? | | ?## ###;; ;#??##??#??????????????????? | | ??# ### ## ; ### ## ###????????????????? | | ??# ############## #????????????????? | | ??# #???????????## #????????????????? | | ??#"""""#????????????# ## #????????????????? | | ??#" #????????????## ## # #??????????????? | | ??#" #????????????# @ #??????????????? | | ?#"" #????????????## #??????????????? | | ? ""## #?????????????# ## #??????????????? | | ## #?????????????# ###?? #?????????????? | | ??" "?????????????# ##?????? #?????????????? | | ##""??#""" ????????????###???????? ?????????????? | | ??##???"" ???????????????????????????????????????? | | ???????"""???????????????????????????????????????? | | ?????????????????????????????????????????????????? | | ?????????????????????????????????????????????????? | | ?????????????????????????????????????????????????? | | ?????????????????????????????????????????????????? | | ?????????????????????????????????????????????????? | | ?????????????????????????????????????????????????? | | ?????????????????????????????????????????????????? | | ?????????????????????????????????????????????????? | | ?????????????????????????????????????????????????? | | ?????????????????????????????????????????????????? | | ?????????????????????????????????????????????????? | | ?????????????????????????????????????????????????? | | ?????????????????????????????????????????????????? | | ?????????????????????????????????????????????????? | | ?????????????????????????????????????????????????? | | ?????????????????????????????????????????????????? | | ?????????????????????????????????????????????????? | +----------------------------------------------------+ Best States ------------- Heat Dissipation 25 Energy Generation 10 Energy Capacity 250 Matter Stores 300 Matter Capacity 300 Sight Range 16 Terrain Scan Density 10 Evasion (%) 55 Recoil Reduction 1 Item Schematics ----------------- None Robot Schematics ------------------ None Fabricated ------------ Nothing Repaired ---------- Nothing Alien Tech Used ----------------- None Achievements -------------- None Challenges ------------ None Game ------ Seed MappingZioniteKinecellerator Manual? 0 Play Time 00:09:50 Cumulative 39.2 hours Start 2025.06.01 @ 13:17:01 End 2025.06.01 @ 13:23:42 Sessions 1 Manual Loads 0 Difficulty Rogue Special Mode None Game No. 63 Rogue 63 Adventurer 0 Explorer 0 Win Type - Total 0 Types 0/0/0/0/0/0/0/0/0/0 Lore% 33 Gallery% 35 Achievement% 29 Wizard Run 0 Options --------- Layout 0 ASCII 0 Keyboard 0 Movement Mouse Keybinds 0 Fullscreen 1 Font 18/SmallcapsGlow Map View 76x50 Zoom Use 0% Tactical HUD 1 Map Filters NONE Filters NONE Steam 1 RUN: 4153ac71-5046-46af-b5f4-f3de78accfc0